[Event "Elite Hotels Open 2023"]
[Site "Elite Stadshotellet, Kungsgatan 6, Vaxjo, Sweden"]
[Date "2023.02.11"]
[Round "5.3"]
[White "Hillarp, Tiger"]
[Black "Wagner, Stephan"]
[Result "0-1"]
[TimeControl "15 minutes + 5 seconds per move from move one (Round 1 - 4) / 90 minutes + 30 seconds per move from move one (Round 5 - 8)"]
[WhiteTitle "GM"]
[WhiteFideId "1700812"]
[BlackFideId "1613251"]
[WhiteElo "2511"]
[BlackElo "2264"]

1. d4 {[%clk 01:30:57]} {[%emt 00:00:03]} Nf6 {[%clk 01:30:53]} {[%emt
00:00:07]} 2. c4 {[%clk 01:31:20]} {[%emt 00:00:07]} e6 {[%clk 01:31:15]}
{[%emt 00:00:08]} 3. Nc3 {[%clk 01:30:48]} {[%emt 00:01:01]} Bb4 {[%clk
01:31:40]} {[%emt 00:00:05]} 4. e3 {[%clk 01:30:55]} {[%emt 00:00:23]} b6
{[%clk 01:31:54]} {[%emt 00:00:16]} 5. Nge2 {[%clk 01:31:08]} {[%emt 00:00:17]}
Bb7 {[%clk 01:31:58]} {[%emt 00:00:27]} 6. a3 {[%clk 01:31:27]} {[%emt
00:00:12]} Be7 {[%clk 01:31:58]} {[%emt 00:00:29]} 7. d5 {[%clk 01:30:18]}
{[%emt 00:01:39]} e5 {[%clk 01:23:37]} {[%emt 00:08:51]} 8. Ng3 {[%clk
01:29:08]} {[%emt 00:01:40]} h5 {[%clk 01:21:34]} {[%emt 00:02:33]} 9. e4
{[%clk 01:22:23]} {[%emt 00:07:14]} g6 {[%clk 01:18:48]} {[%emt 00:03:17]} 10.
Bd3 {[%clk 01:21:34]} {[%emt 00:01:19]} a5 {[%clk 01:14:57]} {[%emt 00:04:21]}
11. f3 {[%clk 01:16:41]} {[%emt 00:05:22]} Na6 {[%clk 01:13:14]} {[%emt
00:02:14]} 12. Rb1 {[%clk 01:15:49]} {[%emt 00:01:22]} Nc5 {[%clk 00:55:50]}
{[%emt 00:17:53]} 13. Bc2 {[%clk 01:15:39]} {[%emt 00:00:40]} d6 {[%clk
00:55:44]} {[%emt 00:00:37]} 14. b4 {[%clk 01:15:55]} {[%emt 00:00:12]} axb4
{[%clk 00:56:11]} {[%emt 00:00:04]} 15. axb4 {[%clk 01:16:16]} {[%emt
00:00:09]} Ncd7 {[%clk 00:56:38]} {[%emt 00:00:03]} 16. Be3 {[%clk 01:13:38]}
{[%emt 00:03:08]} Nh7 {[%clk 00:49:56]} {[%emt 00:07:13]} 17. Qd2 {[%clk
01:08:07]} {[%emt 00:06:01]} Bg5 {[%clk 00:44:06]} {[%emt 00:06:20]} 18. Bxg5
{[%clk 01:08:29]} {[%emt 00:00:08]} Nxg5 {[%clk 00:43:39]} {[%emt 00:00:58]} 19.
h4 {[%clk 01:08:50]} {[%emt 00:00:07]} Nh7 {[%clk 00:43:58]} {[%emt 00:00:12]}
20. Nf1 {[%clk 01:07:49]} {[%emt 00:01:30]} O-O {[%clk 00:39:32]} {[%emt
00:04:55]} 21. Ne3 {[%clk 01:08:13]} {[%emt 00:00:06]} Bc8 {[%clk 00:32:46]}
{[%emt 00:07:17]} 22. Qf2 {[%clk 01:04:48]} {[%emt 00:03:54]} Ndf6 {[%clk
00:27:51]} {[%emt 00:05:25]} 23. Kd2 {[%clk 01:05:02]} {[%emt 00:00:16]} Bd7
{[%clk 00:26:19]} {[%emt 00:02:03]} 24. Ra1 {[%clk 01:05:09]} {[%emt 00:00:23]}
Qc8 {[%clk 00:23:49]} {[%emt 00:03:00]} 25. Bd3 {[%clk 00:49:56]} {[%emt
00:15:42]} Rxa1 {[%clk 00:19:40]} {[%emt 00:04:41]} 26. Rxa1 {[%clk 00:50:18]}
{[%emt 00:00:08]} Qb7 {[%clk 00:20:07]} {[%emt 00:00:02]} 27. Qe1 {[%clk
00:44:19]} {[%emt 00:06:29]} Ra8 {[%clk 00:20:14]} {[%emt 00:00:24]} 28. Qb1
{[%clk 00:43:46]} {[%emt 00:01:02]} Ne8 {[%clk 00:17:09]} {[%emt 00:03:35]} 29.
Ra2 {[%clk 00:34:52]} {[%emt 00:09:24]} Qc8 {[%clk 00:16:23]} {[%emt 00:01:16]}
30. Qa1 {[%clk 00:32:01]} {[%emt 00:03:21]} Rxa2+ {[%clk 00:16:43]} {[%emt
00:00:10]} 31. Qxa2 {[%clk 00:32:26]} {[%emt 00:00:05]} Qd8 {[%clk 00:17:03]}
{[%emt 00:00:10]} 32. g3 {[%clk 00:31:40]} {[%emt 00:01:15]} g5 {[%clk
00:16:39]} {[%emt 00:00:54]} 33. hxg5 {[%clk 00:29:04]} {[%emt 00:03:06]} Nxg5
{[%clk 00:16:00]} {[%emt 00:01:09]} 34. Be2 {[%clk 00:25:49]} {[%emt 00:03:45]}
Qf6 {[%clk 00:15:07]} {[%emt 00:01:24]} 35. Qa8 {[%clk 00:24:21]} {[%emt
00:01:58]} Kf8 {[%clk 00:13:56]} {[%emt 00:01:42]} 36. c5 {[%clk 00:21:25]}
{[%emt 00:03:24]} bxc5 {[%clk 00:13:27]} {[%emt 00:00:59]} 37. bxc5 {[%clk
00:21:49]} {[%emt 00:00:06]} Nxf3+ {[%clk 00:10:11]} {[%emt 00:03:46]} 38. Bxf3
{[%clk 00:22:04]} {[%emt 00:00:16]} Qxf3 {[%clk 00:10:36]} {[%emt 00:00:05]} 39.
Qd8 {[%clk 00:21:43]} {[%emt 00:00:50]} Bg4 {[%clk 00:10:43]} {[%emt 00:00:23]}
40. cxd6 {[%clk 00:19:23]} {[%emt 00:02:51]} cxd6 {[%clk 00:10:10]} {[%emt
00:01:03]} 41. Kd3 {[%clk 00:18:00]} {[%emt 00:01:53]} Bh3 {[%clk 00:08:51]}
{[%emt 00:01:48]} 42. Qb6 {[%clk 00:16:37]} {[%emt 00:01:53]} Qxg3 {[%clk
00:08:35]} {[%emt 00:00:46]} 43. Kc2 {[%clk 00:16:58]} {[%emt 00:00:09]} Qf2+
{[%clk 00:08:25]} {[%emt 00:00:40]} 44. Kb3 {[%clk 00:17:21]} {[%emt 00:00:06]}
Bd7 {[%clk 00:05:22]} {[%emt 00:03:34]} 45. Qa7 {[%clk 00:16:56]} {[%emt
00:00:55]} Bg4 {[%clk 00:04:39]} {[%emt 00:01:13]} 46. Nb5 {[%clk 00:15:02]}
{[%emt 00:02:25]} Qf3 {[%clk 00:04:30]} {[%emt 00:00:38]} 47. Qb6 {[%clk
00:14:03]} {[%emt 00:01:30]} Qxe4 {[%clk 00:04:04]} {[%emt 00:00:55]} 48. Nxd6
{[%clk 00:14:24]} {[%emt 00:00:09]} Qb1+ {[%clk 00:04:30]} {[%emt 00:00:04]}
0-1

[Event "Elite Hotels Open 2023"]
[Site "Elite Stadshotellet, Kungsgatan 6, Vaxjo, Sweden"]
[Date "2023.02.11"]
[Round "5.4"]
[White "Johansson, Ulf"]
[Black "Blomqvist, Erik"]
[Result "0-1"]
[TimeControl "15 minutes + 5 seconds per move from move one (Round 1 - 4) / 90 minutes + 30 seconds per move from move one (Round 5 - 8)"]
[BlackTitle "GM"]
[WhiteFideId "1701380"]
[BlackFideId "1709437"]
[WhiteElo "2205"]
[BlackElo "2510"]

1. Nf3 {[%clk 01:30:57]} {[%emt 00:00:02]} d5 {[%clk 01:30:48]} {[%emt
00:00:12]} 2. g3 {[%clk 01:31:19]} {[%emt 00:00:08]} Nc6 {[%clk 01:31:03]}
{[%emt 00:00:16]} 3. d4 {[%clk 01:30:20]} {[%emt 00:01:29]} Bf5 {[%clk
01:31:11]} {[%emt 00:00:22]} 4. Bg2 {[%clk 01:30:12]} {[%emt 00:00:38]} Nb4
{[%clk 01:31:17]} {[%emt 00:00:23]} 5. Na3 {[%clk 01:30:06]} {[%emt 00:00:37]}
e6 {[%clk 01:31:31]} {[%emt 00:00:16]} 6. O-O {[%clk 01:29:42]} {[%emt
00:00:54]} Be7 {[%clk 01:31:26]} {[%emt 00:00:34]} 7. Ne5 {[%clk 01:26:21]}
{[%emt 00:03:50]} f6 {[%clk 01:30:49]} {[%emt 00:01:07]} 8. Nd3 {[%clk
01:26:35]} {[%emt 00:00:16]} Qd7 {[%clk 01:28:36]} {[%emt 00:02:43]} 9. Nxb4
{[%clk 01:21:08]} {[%emt 00:05:57]} Bxb4 {[%clk 01:29:00]} {[%emt 00:00:07]} 10.
c4 {[%clk 01:21:33]} {[%emt 00:00:05]} c6 {[%clk 01:25:27]} {[%emt 00:04:02]}
11. Nc2 {[%clk 01:16:57]} {[%emt 00:05:06]} Ba5 {[%clk 01:25:37]} {[%emt
00:00:20]} 12. Ne3 {[%clk 01:16:11]} {[%emt 00:01:16]} Bg6 {[%clk 01:23:42]}
{[%emt 00:02:25]} 13. Bd2 {[%clk 01:16:25]} {[%emt 00:00:17]} Bc7 {[%clk
01:21:11]} {[%emt 00:03:01]} 14. Qb3 {[%clk 01:10:10]} {[%emt 00:06:45]} Bb6
{[%clk 01:19:33]} {[%emt 00:02:07]} 15. Bc3 {[%clk 01:09:27]} {[%emt 00:01:12]}
Ne7 {[%clk 01:16:32]} {[%emt 00:03:31]} 16. a4 {[%clk 01:08:44]} {[%emt
00:01:13]} Rb8 {[%clk 01:16:32]} {[%emt 00:00:29]} 17. Rfd1 {[%clk 01:07:04]}
{[%emt 00:02:12]} h5 {[%clk 01:14:48]} {[%emt 00:02:13]} 18. Bb4 {[%clk
01:02:33]} {[%emt 00:05:01]} h4 {[%clk 01:14:22]} {[%emt 00:00:56]} 19. Qa3
{[%clk 01:02:23]} {[%emt 00:00:40]} Bc7 {[%clk 01:08:51]} {[%emt 00:06:01]} 20.
Rac1 {[%clk 01:00:53]} {[%emt 00:01:57]} hxg3 {[%clk 01:04:30]} {[%emt
00:04:55]} 21. hxg3 {[%clk 01:01:19]} {[%emt 00:00:03]} Nf5 {[%clk 01:04:44]}
{[%emt 00:00:17]} 22. Nf1 {[%clk 00:55:33]} {[%emt 00:06:15]} a5 {[%clk
01:01:11]} {[%emt 00:04:03]} 23. Bc3 {[%clk 00:55:35]} {[%emt 00:00:28]} Nd6
{[%clk 01:00:40]} {[%emt 00:01:01]} 24. Nd2 {[%clk 00:53:31]} {[%emt 00:02:34]}
Bf5 {[%clk 00:55:16]} {[%emt 00:05:53]} 25. b4 {[%clk 00:53:03]} {[%emt
00:00:58]} g5 {[%clk 00:51:43]} {[%emt 00:04:03]} 26. Bb2 {[%clk 00:39:52]}
{[%emt 00:13:41]} Qh7 {[%clk 00:50:41]} {[%emt 00:01:32]} 27. Qf3 {[%clk
00:32:50]} {[%emt 00:07:32]} Ne4 {[%clk 00:42:55]} {[%emt 00:08:15]} 28. Nf1
{[%clk 00:33:05]} {[%emt 00:00:15]} axb4 {[%clk 00:42:36]} {[%emt 00:00:50]} 29.
cxd5 {[%clk 00:31:40]} {[%emt 00:01:54]} exd5 {[%clk 00:42:24]} {[%emt
00:00:43]} 30. e3 {[%clk 00:23:47]} {[%emt 00:08:23]} Ra8 {[%clk 00:40:44]}
{[%emt 00:02:09]} 31. Ra1 {[%clk 00:24:15]} {[%emt 00:00:03]} Kf7 {[%clk
00:33:35]} {[%emt 00:07:40]} 32. Qe2 {[%clk 00:20:22]} {[%emt 00:04:22]} Rag8
{[%clk 00:32:55]} {[%emt 00:01:10]} 33. g4 {[%clk 00:16:18]} {[%emt 00:04:33]}
Be6 {[%clk 00:32:55]} {[%emt 00:00:31]} 0-1

[Event "Elite Hotels Open 2023"]
[Site "Elite Stadshotellet, Kungsgatan 6, Vaxjo, Sweden"]
[Date "2023.02.11"]
[Round "5.5"]
[White "Lindborg, Patrik"]
[Black "Trost, Edvin"]
[Result "0-1"]
[TimeControl "15 minutes + 5 seconds per move from move one (Round 1 - 4) / 90 minutes + 30 seconds per move from move one (Round 5 - 8)"]
[BlackTitle "FM"]
[WhiteFideId "1707507"]
[BlackFideId "1729519"]
[WhiteElo "2184"]
[BlackElo "2364"]

1. d4 {[%clk 01:30:57]} {[%emt 00:00:02]} Nf6 {[%clk 01:30:54]} {[%emt
00:00:07]} 2. c4 {[%clk 01:31:22]} {[%emt 00:00:05]} e6 {[%clk 01:31:19]}
{[%emt 00:00:05]} 3. Nf3 {[%clk 01:31:46]} {[%emt 00:00:05]} d5 {[%clk
01:31:45]} {[%emt 00:00:04]} 4. g3 {[%clk 01:30:52]} {[%emt 00:01:25]} Bb4+
{[%clk 01:29:58]} {[%emt 00:02:18]} 5. Bd2 {[%clk 01:31:00]} {[%emt 00:00:20]}
a5 {[%clk 01:28:54]} {[%emt 00:01:35]} 6. Qc2 {[%clk 01:27:38]} {[%emt
00:03:51]} O-O {[%clk 01:29:13]} {[%emt 00:00:12]} 7. Bg2 {[%clk 01:27:51]}
{[%emt 00:00:16]} c5 {[%clk 01:28:11]} {[%emt 00:01:32]} 8. cxd5 {[%clk
01:20:00]} {[%emt 00:08:20]} cxd4 {[%clk 01:28:36]} {[%emt 00:00:06]} 9. Nxd4
{[%clk 01:19:21]} {[%emt 00:01:09]} Qb6 {[%clk 01:29:02]} {[%emt 00:00:04]} 10.
e3 {[%clk 01:16:28]} {[%emt 00:03:23]} exd5 {[%clk 01:29:19]} {[%emt 00:00:12]}
11. O-O {[%clk 01:12:27]} {[%emt 00:04:31]} Nc6 {[%clk 01:29:41]} {[%emt
00:00:08]} 12. Nxc6 {[%clk 01:09:17]} {[%emt 00:03:40]} bxc6 {[%clk 01:29:16]}
{[%emt 00:00:56]} 13. Rc1 {[%clk 01:07:05]} {[%emt 00:02:42]} Rb8 {[%clk
01:29:38]} {[%emt 00:00:08]} 14. Nc3 {[%clk 01:03:57]} {[%emt 00:03:37]} h5
{[%clk 01:29:56]} {[%emt 00:00:12]} 15. Na4 {[%clk 00:58:54]} {[%emt 00:05:35]}
Qd8 {[%clk 01:29:39]} {[%emt 00:00:46]} 16. a3 {[%clk 00:53:31]} {[%emt
00:05:52]} Bxd2 {[%clk 01:27:20]} {[%emt 00:02:50]} 17. Qxd2 {[%clk 00:52:31]}
{[%emt 00:01:30]} Ba6 {[%clk 01:14:28]} {[%emt 00:13:21]} 18. Nc5 {[%clk
00:45:35]} {[%emt 00:07:26]} Bc4 {[%clk 00:56:44]} {[%emt 00:18:14]} 19. b3
{[%clk 00:42:46]} {[%emt 00:03:19]} Bxb3 20. Nxb3 {[%clk 00:43:14]} Rxb3 {[%clk
00:56:52]} {[%emt 00:00:01]} 21. Rxc6 {[%clk 00:43:11]} {[%emt 00:00:34]} h4
{[%clk 00:51:08]} {[%emt 00:06:15]} 22. Qd4 {[%clk 00:38:22]} {[%emt 00:05:17]}
Qd7 {[%clk 00:39:36]} {[%emt 00:12:03]} 23. Rxf6 {[%clk 00:28:30]} {[%emt
00:10:21]} gxf6 {[%clk 00:40:05]} {[%emt 00:00:02]} 24. Bxd5 {[%clk 00:28:49]}
{[%emt 00:00:12]} Rb5 {[%clk 00:38:36]} {[%emt 00:01:58]} 25. Rd1 {[%clk
00:25:24]} {[%emt 00:03:55]} Qf5 {[%clk 00:34:00]} {[%emt 00:05:06]} 26. Bc4
{[%clk 00:19:02]} {[%emt 00:06:52]} hxg3 {[%clk 00:32:56]} {[%emt 00:01:34]} 27.
hxg3 {[%clk 00:18:45]} {[%emt 00:00:46]} Re5 {[%clk 00:31:57]} {[%emt
00:01:29]} 28. Bd5 {[%clk 00:13:48]} {[%emt 00:05:27]} Kg7 {[%clk 00:31:00]}
{[%emt 00:01:28]} 29. g4 {[%clk 00:10:05]} {[%emt 00:04:12]} Qg6 {[%clk
00:21:29]} {[%emt 00:10:02]} 30. Bf3 {[%clk 00:08:04]} {[%emt 00:02:30]} Rh8
{[%clk 00:16:48]} {[%emt 00:05:11]} 31. Kf1 {[%clk 00:08:14]} {[%emt 00:00:20]}
Rb5 {[%clk 00:14:57]} {[%emt 00:02:19]} 32. Qd3 {[%clk 00:04:25]} {[%emt
00:04:21]} Qg5 {[%clk 00:13:34]} {[%emt 00:01:54]} 33. Qd7 {[%clk 00:03:32]}
{[%emt 00:01:23]} Rb2 {[%clk 00:11:50]} {[%emt 00:02:14]} 34. Bd5 {[%clk
00:02:21]} {[%emt 00:01:41]} Rf8 {[%clk 00:12:18]} {[%emt 00:00:02]} 35. Rd4
{[%clk 00:01:11]} {[%emt 00:01:40]} Qg6 {[%clk 00:10:31]} {[%emt 00:02:18]} 36.
Be4 {[%clk 00:01:16]} {[%emt 00:00:24]} Qh6 {[%clk 00:10:09]} {[%emt 00:00:52]}
37. Rd1 {[%clk 00:00:41]} {[%emt 00:01:04]} Qh3+ {[%clk 00:08:35]} {[%emt
00:02:04]} 38. Ke1 {[%clk 00:00:55]} {[%emt 00:00:14]} Qh2 {[%clk 00:08:37]}
{[%emt 00:00:30]} 39. Rd2 {[%clk 00:00:33]} {[%emt 00:00:53]} Qg1+ {[%clk
00:08:37]} {[%emt 00:00:29]} 40. Ke2 {[%clk 00:01:02]} {[%emt 00:00:01]} Rxd2+
{[%clk 00:08:58]} {[%emt 00:00:09]} 41. Qxd2 {[%clk 00:01:24]} {[%emt
00:00:07]} Qxg4+ {[%clk 00:09:21]} {[%emt 00:00:08]} 42. f3 {[%clk 00:01:15]}
{[%emt 00:00:40]} Qg2+ {[%clk 00:09:43]} {[%emt 00:00:08]} 43. Ke1 {[%clk
00:01:14]} {[%emt 00:00:30]} Qg1+ {[%clk 00:09:57]} {[%emt 00:00:16]} 44. Ke2
{[%clk 00:01:43]} {[%emt 00:00:02]} Rb8 {[%clk 00:06:24]} {[%emt 00:04:02]} 45.
f4 {[%clk 00:01:27]} {[%emt 00:00:45]} Rb2 {[%clk 00:06:00]} {[%emt 00:00:56]}
46. Bc2 {[%clk 00:01:45]} {[%emt 00:00:12]} Ra2 {[%clk 00:03:45]} {[%emt
00:02:44]} 47. a4 {[%clk 00:01:36]} {[%emt 00:00:39]} Qg2+ {[%clk 00:03:19]}
{[%emt 00:00:56]} 48. Ke1 {[%clk 00:01:11]} {[%emt 00:00:55]} Rxc2 {[%clk
00:03:13]} {[%emt 00:00:36]} 0-1

[Event "Elite Hotels Open 2023"]
[Site "Elite Stadshotellet, Kungsgatan 6, Vaxjo, Sweden"]
[Date "2023.02.11"]
[Round "5.6"]
[White "Falkevall, Axel"]
[Black "Kristensen, Kaare Hove"]
[Result "1/2-1/2"]
[TimeControl "15 minutes + 5 seconds per move from move one (Round 1 - 4) / 90 minutes + 30 seconds per move from move one (Round 5 - 8)"]
[WhiteTitle "FM"]
[BlackTitle "IM"]
[WhiteFideId "1735560"]
[BlackFideId "1400940"]
[WhiteElo "2299"]
[BlackElo "2210"]

1. e4 {[%clk 01:30:56]} {[%emt 00:00:03]} c5 {[%clk 01:30:51]} {[%emt
00:00:09]} 2. c3 {[%clk 01:31:23]} {[%emt 00:00:04]} d5 {[%clk 01:30:46]}
{[%emt 00:00:35]} 3. exd5 {[%clk 01:31:46]} {[%emt 00:00:07]} Nf6 {[%clk
01:31:04]} {[%emt 00:00:11]} 4. Qa4+ {[%clk 01:32:05]} {[%emt 00:00:12]} Bd7
{[%clk 01:25:48]} {[%emt 00:05:46]} 5. Qb3 {[%clk 01:32:21]} {[%emt 00:00:15]}
Qb6 {[%clk 01:25:44]} {[%emt 00:00:33]} 6. Bc4 {[%clk 01:32:18]} {[%emt
00:00:33]} Na6 {[%clk 01:25:59]} {[%emt 00:00:15]} 7. Nf3 {[%clk 01:25:00]}
{[%emt 00:07:48]} Nc7 {[%clk 01:25:56]} {[%emt 00:00:33]} 8. Ne5 {[%clk
01:23:36]} {[%emt 00:01:53]} Qxb3 {[%clk 01:25:54]} {[%emt 00:00:32]} 9. axb3
{[%clk 01:20:00]} {[%emt 00:04:07]} Nfxd5 {[%clk 01:21:43]} {[%emt 00:04:41]}
10. Nxd7 {[%clk 01:19:54]} {[%emt 00:00:36]} Kxd7 {[%clk 01:22:01]} {[%emt
00:00:11]} 11. O-O {[%clk 01:16:20]} {[%emt 00:04:05]} e6 {[%clk 01:21:07]}
{[%emt 00:01:24]} 12. Rd1 {[%clk 01:11:24]} {[%emt 00:05:26]} Bd6 {[%clk
01:10:41]} {[%emt 00:10:56]} 13. Na3 {[%clk 01:08:40]} {[%emt 00:03:14]} a6
{[%clk 01:06:59]} {[%emt 00:04:11]} 14. Bf1 {[%clk 01:04:44]} {[%emt 00:04:27]}
b5 {[%clk 01:04:42]} {[%emt 00:02:47]} 15. Nc2 {[%clk 01:03:33]} {[%emt
00:01:40]} Ke7 {[%clk 01:00:44]} {[%emt 00:04:28]} 16. c4 {[%clk 00:58:48]}
{[%emt 00:05:17]} Nf6 {[%clk 00:55:21]} {[%emt 00:05:51]} 17. d4 {[%clk
00:55:09]} {[%emt 00:04:10]} Rhd8 {[%clk 00:49:38]} {[%emt 00:06:13]} 18. h3
{[%clk 00:50:49]} {[%emt 00:04:49]} cxd4 {[%clk 00:33:51]} {[%emt 00:16:18]} 19.
Nxd4 {[%clk 00:50:24]} {[%emt 00:00:55]} Ke8 {[%clk 00:29:15]} {[%emt
00:05:05]} 20. Be3 {[%clk 00:39:45]} {[%emt 00:11:10]} bxc4 {[%clk 00:20:04]}
{[%emt 00:09:41]} 21. Nc6 {[%clk 00:37:21]} {[%emt 00:02:54]} cxb3 {[%clk
00:18:05]} {[%emt 00:02:30]} 22. Nxd8 {[%clk 00:36:23]} {[%emt 00:01:28]} Rxd8
{[%clk 00:18:26]} {[%emt 00:00:08]} 23. Rd3 {[%clk 00:25:22]} {[%emt 00:11:30]}
Nfd5 {[%clk 00:18:12]} {[%emt 00:00:44]} 24. Rxb3 {[%clk 00:23:46]} {[%emt
00:02:06]} Nxe3 {[%clk 00:18:27]} {[%emt 00:00:16]} 25. Rxe3 {[%clk 00:23:23]}
{[%emt 00:00:53]} Rb8 {[%clk 00:17:21]} {[%emt 00:01:35]} 26. b3 {[%clk
00:20:50]} {[%emt 00:03:04]} Ke7 {[%clk 00:17:13]} {[%emt 00:00:39]} 27. Bc4
{[%clk 00:19:13]} {[%emt 00:02:06]} Bb4 {[%clk 00:16:21]} {[%emt 00:01:22]} 28.
Rd3 {[%clk 00:17:39]} {[%emt 00:02:03]} Rb6 {[%clk 00:07:34]} {[%emt 00:09:17]}
29. Rad1 {[%clk 00:15:22]} {[%emt 00:02:48]} Bd6 {[%clk 00:07:50]} {[%emt
00:00:13]} 30. Re1 {[%clk 00:11:51]} {[%emt 00:04:02]} a5 {[%clk 00:07:17]}
{[%emt 00:01:02]} 31. g3 {[%clk 00:09:54]} {[%emt 00:02:27]} Ne8 {[%clk
00:05:52]} {[%emt 00:01:53]} 32. Red1 {[%clk 00:08:38]} {[%emt 00:01:47]} Nf6
{[%clk 00:05:03]} {[%emt 00:01:20]} 33. Ra1 {[%clk 00:04:15]} {[%emt 00:04:54]}
Bb4 {[%clk 00:05:21]} {[%emt 00:00:12]} 34. Rad1 {[%clk 00:04:30]} {[%emt
00:00:14]} Bd6 {[%clk 00:05:07]} {[%emt 00:00:45]} 35. Ra1 {[%clk 00:04:47]}
{[%emt 00:00:13]} Bb4 {[%clk 00:05:32]} {[%emt 00:00:05]} 36. Rad1 {[%clk
00:03:35]} {[%emt 00:01:42]} 1/2-1/2

[Event "Elite Hotels Open 2023"]
[Site "Elite Stadshotellet, Kungsgatan 6, Vaxjo, Sweden"]
[Date "2023.02.11"]
[Round "5.7"]
[White "Fransson, Patrick"]
[Black "Hector, Jonny"]
[Result "0-1"]
[TimeControl "15 minutes + 5 seconds per move from move one (Round 1 - 4) / 90 minutes + 30 seconds per move from move one (Round 5 - 8)"]
[BlackTitle "GM"]
[WhiteFideId "1709305"]
[BlackFideId "1700090"]
[WhiteElo "2126"]
[BlackElo "2466"]

1. d4 {[%clk 01:30:52]} {[%emt 00:00:09]} d5 {[%clk 01:30:56]} {[%emt
00:00:03]} 2. Bf4 {[%clk 01:31:17]} {[%emt 00:00:06]} c5 {[%clk 01:31:04]}
{[%emt 00:00:20]} 3. e3 {[%clk 01:31:04]} {[%emt 00:00:45]} Nc6 {[%clk
01:31:16]} {[%emt 00:00:17]} 4. c3 {[%clk 01:31:12]} {[%emt 00:00:22]} Nf6
{[%clk 01:30:59]} {[%emt 00:00:46]} 5. Bd3 {[%clk 01:31:19]} {[%emt 00:00:24]}
g6 {[%clk 01:29:00]} {[%emt 00:02:29]} 6. Nd2 {[%clk 01:29:31]} {[%emt
00:02:19]} Bg7 {[%clk 01:28:13]} {[%emt 00:01:15]} 7. h3 {[%clk 01:27:59]}
{[%emt 00:02:03]} O-O {[%clk 01:24:09]} {[%emt 00:04:34]} 8. Ngf3 {[%clk
01:26:53]} {[%emt 00:01:37]} Nd7 {[%clk 01:23:13]} {[%emt 00:01:24]} 9. O-O
{[%clk 01:18:39]} {[%emt 00:08:45]} e5 {[%clk 01:21:10]} {[%emt 00:02:33]} 10.
dxe5 {[%clk 01:15:41]} {[%emt 00:03:29]} Ndxe5 {[%clk 01:21:21]} {[%emt
00:00:17]} 11. Nxe5 {[%clk 01:07:33]} {[%emt 00:08:40]} Nxe5 {[%clk 01:21:23]}
{[%emt 00:00:27]} 12. Bxe5 {[%clk 00:52:30]} {[%emt 00:15:35]} Bxe5 {[%clk
01:21:43]} {[%emt 00:00:09]} 13. Nf3 {[%clk 00:52:55]} {[%emt 00:00:06]} Bg7
{[%clk 01:17:59]} {[%emt 00:04:12]} 14. e4 {[%clk 00:51:02]} {[%emt 00:02:25]}
Be6 {[%clk 01:16:18]} {[%emt 00:02:10]} 15. Re1 {[%clk 00:48:26]} {[%emt
00:03:06]} Rb8 {[%clk 01:07:11]} {[%emt 00:09:37]} 16. e5 {[%clk 00:39:36]}
{[%emt 00:09:20]} h6 {[%clk 01:01:42]} {[%emt 00:05:57]} 17. Qc2 {[%clk
00:36:12]} {[%emt 00:03:55]} Qc7 {[%clk 00:59:08]} {[%emt 00:03:04]} 18. Rad1
{[%clk 00:35:07]} {[%emt 00:01:36]} Rfe8 {[%clk 00:57:15]} {[%emt 00:02:21]} 19.
Qe2 {[%clk 00:33:42]} {[%emt 00:01:56]} Re7 {[%clk 00:54:54]} {[%emt 00:02:50]}
20. Nh2 {[%clk 00:33:17]} {[%emt 00:00:56]} g5 {[%clk 00:46:32]} {[%emt
00:08:51]} 21. Bb1 {[%clk 00:26:09]} {[%emt 00:07:40]} Kf8 {[%clk 00:44:02]}
{[%emt 00:02:58]} 22. g3 {[%clk 00:25:52]} {[%emt 00:00:49]} Bxh3 {[%clk
00:41:01]} {[%emt 00:03:30]} 23. f4 {[%clk 00:25:06]} {[%emt 00:01:16]} Bd7
{[%clk 00:33:20]} {[%emt 00:08:10]} 24. Rxd5 {[%clk 00:23:19]} {[%emt
00:02:18]} Bc6 {[%clk 00:32:22]} {[%emt 00:01:27]} 25. Rd2 {[%clk 00:23:21]}
{[%emt 00:00:29]} Rd8 {[%clk 00:31:53]} {[%emt 00:00:59]} 26. Rxd8+ {[%clk
00:22:11]} {[%emt 00:01:41]} Qxd8 {[%clk 00:32:20]} {[%emt 00:00:02]} 27. Be4
{[%clk 00:22:00]} {[%emt 00:00:42]} Bxe5 {[%clk 00:18:52]} {[%emt 00:13:57]} 28.
fxe5 {[%clk 00:20:37]} {[%emt 00:01:53]} Rxe5 {[%clk 00:19:20]} {[%emt
00:00:02]} 29. Qh5 {[%clk 00:19:20]} {[%emt 00:01:48]} Rxe4 {[%clk 00:18:30]}
{[%emt 00:01:19]} 30. Rf1 {[%clk 00:17:28]} {[%emt 00:02:23]} Qd5 {[%clk
00:16:32]} {[%emt 00:02:26]} 31. Qxh6+ {[%clk 00:13:58]} {[%emt 00:04:00]} Kg8
{[%clk 00:15:57]} {[%emt 00:01:04]} 32. Nf3 {[%clk 00:11:20]} {[%emt 00:03:09]}
Re3 {[%clk 00:10:16]} {[%emt 00:06:10]} 33. c4 {[%clk 00:11:06]} {[%emt
00:00:45]} Qd8 {[%clk 00:07:42]} {[%emt 00:03:02]} 34. Ne1 {[%clk 00:05:52]}
{[%emt 00:05:45]} Rxe1 {[%clk 00:04:35]} {[%emt 00:03:37]} 35. Rxe1 {[%clk
00:05:49]} {[%emt 00:00:33]} Qd2 {[%clk 00:04:57]} {[%emt 00:00:07]} 36. Re2
{[%clk 00:04:29]} {[%emt 00:01:51]} Qxe2 {[%clk 00:05:17]} {[%emt 00:00:09]} 37.
Qxg5+ {[%clk 00:04:57]} {[%emt 00:00:02]} Kf8 {[%clk 00:05:25]} {[%emt
00:00:22]} 38. Qd8+ {[%clk 00:05:23]} {[%emt 00:00:04]} Qe8 {[%clk 00:05:37]}
{[%emt 00:00:18]} 39. Qd6+ {[%clk 00:05:42]} {[%emt 00:00:12]} Kg8 {[%clk
00:05:38]} {[%emt 00:00:27]} 40. Kf2 {[%clk 00:05:20]} {[%emt 00:00:53]} Qe4
{[%clk 00:05:36]} {[%emt 00:00:31]} 41. Qd8+ {[%clk 00:05:18]} {[%emt
00:00:33]} Kh7 {[%clk 00:05:49]} {[%emt 00:00:16]} 42. Qg5 {[%clk 00:05:34]}
{[%emt 00:00:15]} Qf3+ {[%clk 00:04:13]} {[%emt 00:02:05]} 43. Ke1 {[%clk
00:05:59]} {[%emt 00:00:06]} b6 {[%clk 00:04:09]} {[%emt 00:00:33]} 44. b3
{[%clk 00:04:18]} {[%emt 00:02:13]} Be4 {[%clk 00:04:20]} {[%emt 00:00:18]} 45.
g4 {[%clk 00:03:35]} {[%emt 00:01:13]} Bg6 {[%clk 00:03:50]} {[%emt 00:01:00]}
0-1